bitfinex/quotes_SOLUSD_20251118
["timestamp","ask_amount","ask_price","bid_price","bid_amount"]
[1763474542198,6.04456141,138.54,138.5,0.65]
[1763474543504,6.04456141,138.51,138.46,0.65]
[1763474543712,6.04456141,138.51,138.44,69.02054164]
[1763474543713,6.04456141,138.48,138.45,9.78882769]
[1763474544085,6.04456141,138.48,138.45,0.65]
[1763474544284,6.04456141,138.47,138.43,6.87054164]
[1763474544496,6.04456141,138.47,138.43,0.85]
[1763474544809,6.04456141,138.47,138.44,0.65]
[1763474545000,6.04456141,138.46,138.43,0.85]
[1763474545181,6.04456141,138.45,138.43,0.2]
[1763474545912,6.04456141,138.46,138.43,0.2]
[1763474546289,6.04456141,138.46,138.43,0.85]
[1763474546490,6.04456141,138.47,138.43,0.85]
[1763474546693,24.16552141,138.5,138.45,9.78882769]
[1763474547009,6.04456141,138.51,138.46,6.04456141]
[1763474547192,6.04456141,138.51,138.47,0.65]
[1763474547386,6.04456141,138.5,138.47,0.65]
[1763474548082,6.04456141,138.49,138.45,10.43882769]
[1763474548288,6.04456141,138.48,138.45,10.43882769]
[1763474548806,6.04456141,138.48,138.46,0.65]
[1763474549116,6.04456141,138.49,138.46,0.65]
[1763474549280,0.41,138.51,138.46,0.65]
[1763474549483,0.41,138.54,138.47,9.78882769]
[1763474549683,0.41,138.54,138.48,0.65]
[1763474549684,6.04456141,138.52,138.48,0.65]
[1763474550100,6.04456141,138.53,138.49,9.78882769]
[1763474550400,4.71,138.56,138.49,15.8333891]
[1763474550401,6.04456141,138.54,138.49,15.8333891]
[1763474550581,6.04456141,138.54,138.5,0.65]
[1763474550781,6.04456141,138.55,138.5,6.69456141]
[1763474551001,6.04456141,138.55,138.5,0.65]
[1763474551307,6.04456141,138.55,138.51,0.65]
[1763474552914,6.04456141,138.54,138.51,0.65]
[1763474553115,6.04456141,138.53,138.49,0.65]
[1763474553293,6.04456141,138.53,138.48,9.78882769]
[1763474553615,6.04456141,138.53,138.5,0.65]
[1763474553817,22.83096,138.57,138.5,0.65]
[1763474553818,6.04456141,138.54,138.5,0.65]
[1763474554381,6.04456141,138.53,138.5,0.65]
[1763474557403,10.10410545,138.44,138.43,0.2]
[1763474557834,10.51410545,138.44,138.43,0.2]
[1763474558002,0.41,138.44,138.43,0.2]
[1763474558313,10.51410545,138.44,138.43,0.2]
[1763474558716,32.93506545,138.44,138.43,0.2]
[1763474561107,22.42096,138.44,138.43,0.2]
[1763474561316,32.93506545,138.44,138.43,0.2]
[1763474563600,24.60293314,138.44,138.43,0.2]
[1763474564007,24.60293314,138.44,138.4,0.2]
[1763474564008,18.12096,138.41,138.4,0.2]
[1763474564229,32.52506545,138.41,138.4,0.2]
[1763474564412,32.93506545,138.41,138.4,0.2]
[1763474565820,9.78882769,138.4,138.39,0.2]
[1763474566034,20.30293314,138.4,138.39,0.2]
[1763474566335,10.51410545,138.4,138.39,0.2]
[1763474566723,10.10410545,138.4,138.39,0.2]
[1763474566926,32.52506545,138.4,138.39,0.2]
[1763474567131,14.81410545,138.4,138.38,0.2]
[1763474567307,28.63506545,138.39,138.38,0.2]
[1763474567506,28.22506545,138.39,138.38,0.2]
[1763474567724,32.93506545,138.39,138.38,0.2]
[1763474570009,18.12096,138.39,138.38,0.2]
[1763474570212,4.3,138.39,138.38,0.87]
[1763474570443,14.40410545,138.39,138.38,0.2]
[1763474571309,14.40410545,138.39,138.38,0.87]
[1763474571511,10.10410545,138.41,138.38,0.87]
[1763474571819,14.42410545,138.4,138.38,0.87]
[1763474572133,4.32,138.39,138.38,0.6963]
[1763474573422,14.42410545,138.39,138.38,0.6963]
[1763474574345,14.42410545,138.39,138.38,0.0263]
[1763474575730,14.42410545,138.39,138.38,0.6963]
[1763474575926,14.40410545,138.39,138.38,0.6963]
[1763474576322,14.40410545,138.39,138.38,0.0263]
[1763474577837,14.40410545,138.39,138.38,0.6963]
[1763474579218,10.10410545,138.39,138.38,0.6963]
[1763474579419,14.40410545,138.39,138.38,0.6963]
[1763474580438,14.40410545,138.39,138.38,0.0263]
[1763474581150,32.93506545,138.39,138.38,0.0263]
[1763474581534,24.60293314,138.39,138.38,0.0263]
[1763474582245,4.71,138.39,138.38,0.0263]
[1763474582419,14.81410545,138.39,138.38,0.0263]
[1763474583138,24.60293314,138.39,138.38,0.0263]
[1763474584449,18.12096,138.36,138.34,0.2]
[1763474584649,10.10410545,138.32,138.28,0.2]
[1763474584839,9.78882769,138.31,138.28,0.2]
[1763474585017,19.89293314,138.31,138.28,0.2]
[1763474585733,10.10410545,138.3,138.28,0.2]
[1763474586049,24.21293314,138.3,138.28,0.2]
[1763474586218,14.10882769,138.3,138.28,0.2]
[1763474586416,24.21293314,138.3,138.28,0.2]
[1763474587048,10.10410545,138.3,138.28,0.2]
[1763474587225,14.42410545,138.3,138.28,0.2]
[1763474589122,4.32,138.3,138.29,0.87]
[1763474589345,14.42410545,138.3,138.29,0.87]
[1763474589540,14.42410545,138.3,138.29,0.2]
[1763474591168,14.42410545,138.3,138.29,0.87]
[1763474591940,14.42410545,138.3,138.29,0.2]
[1763474593360,4.32,138.3,138.29,0.2]
[1763474593564,14.42410545,138.3,138.29,0.2]
[1763474595062,14.42410545,138.3,138.29,0.87]
[1763474595651,9.78882769,138.35,138.29,0.87]
[1763474595980,0.67,138.47,138.37,18.12096]
[1763474596285,1.09,138.47,138.41,10.10410545]
[1763474596579,10.10410545,138.43,138.39,9.78882769]
[1763474596790,4.34,138.44,138.33,0.72290898]
[1763474596976,4.34,138.44,138.36,10.10410545]
[1763474596977,10.10410545,138.43,138.36,10.10410545]
[1763474597281,0.67,138.47,138.39,19.89293314]
[1763474597448,10.10410545,138.46,138.4,10.10410545]
[1763474597644,0.67,138.47,138.38,18.12096]
[1763474597893,10.10410545,138.45,138.4,9.78882769]
[1763474598092,0.67,138.47,138.4,19.89293314]
[1763474598297,0.67,138.47,138.42,19.89293314]
[1763474598298,10.10410545,138.47,138.42,19.89293314]
[1763474598587,10.10410545,138.46,138.41,28.22506545]
[1763474598788,18.12096,138.51,138.41,28.22506545]
[1763474599003,0.1,138.55,138.5,18.12096]
[1763474599161,0.1,138.55,138.54,10.10410545]
[1763474599368,10.10410545,138.61,138.57,18.12096]
[1763474599755,10.77410545,138.61,138.57,18.12096]
[1763474599955,10.10410545,138.61,138.58,18.12096]
[1763474600252,10.10410545,138.61,138.55,9.78882769]
[1763474600456,10.10410545,138.61,138.54,17.32222499]
[1763474600457,10.10410545,138.61,138.59,9.78882769]
[1763474600658,10.10410545,138.61,138.58,9.78882769]
[1763474601092,10.10410545,138.61,138.6,27.90978769]
[1763474601270,10.10410545,138.63,138.6,27.90978769]
[1763474601470,0.67,138.65,138.6,18.12096]
[1763474601764,10.10410545,138.64,138.62,18.12096]
[1763474602067,0.67,138.65,138.61,18.12096]
[1763474602281,0.67,138.68,138.63,18.12096]
[1763474602593,4.4,138.7,138.63,18.12096]
[1763474602594,10.10410545,138.67,138.63,18.12096]
[1763474603159,10.10410545,138.66,138.63,18.12096]
[1763474603397,10.10410545,138.64,138.63,18.12096]
[1763474603870,0.67,138.66,138.63,18.12096]
[1763474604067,10.10410545,138.64,138.63,18.12096]
[1763474604691,0.67,138.66,138.63,18.12096]
[1763474604878,10.10410545,138.64,138.63,18.12096]
[1763474606304,10.10410545,138.65,138.63,18.12096]
[1763474606498,0.67,138.66,138.63,18.12096]
[1763474606739,10.10410545,138.64,138.57,4.4]
[1763474606901,10.10410545,138.59,138.57,4.4]
[1763474607095,0.67,138.64,138.59,18.12096]
[1763474607428,10.10410545,138.6,138.59,18.12096]
[1763474607721,10.10410545,138.6,138.53,10.10410545]
[1763474608028,0.67,138.61,138.59,18.12096]
[1763474608193,10.10410545,138.6,138.59,18.12096]
[1763474609934,10.10410545,138.61,138.59,18.12096]
[1763474610112,10.10410545,138.6,138.59,18.12096]
[1763474610820,10.77410545,138.6,138.57,4.38]
[1763474611031,18.12096,138.69,138.52,10.10410545]
[1763474611032,10.10410545,138.58,138.52,9.78882769]
[1763474611329,10.10410545,138.55,138.54,18.12096]
[1763474611513,10.10410545,138.56,138.55,18.12096]
[1763474612235,0.67,138.6,138.54,9.78882769]
[1763474612414,10.10410545,138.57,138.54,9.78882769]
[1763474612733,0.67,138.6,138.56,18.12096]
[1763474612932,0.67,138.59,138.53,4.38]
[1763474613117,0.67,138.59,138.51,4.38]
[1763474613318,0.67,138.59,138.53,18.12096]
[1763474613912,10.10410545,138.54,138.53,18.12096]
[1763474614917,10.10410545,138.55,138.53,18.12096]
[1763474615537,10.77410545,138.54,138.5,9.78882769]
[1763474615722,0.67,138.54,138.5,14.16882769]
[1763474615926,0.67,138.53,138.52,18.12096]
[1763474616128,10.77410545,138.53,138.49,18.12096]
[1763474616330,10.10410545,138.51,138.49,18.12096]
[1763474616520,0.67,138.53,138.49,18.12096]
[1763474616521,10.10410545,138.52,138.49,18.12096]
[1763474617039,6.04474212,138.52,138.49,18.12096]
[1763474617440,0.67,138.55,138.5,27.90978769]
[1763474617639,6.04474212,138.54,138.5,27.90978769]
[1763474617840,6.04474212,138.53,138.5,27.90978769]
[1763474618329,6.04474212,138.54,138.5,27.90978769]
[1763474618535,6.04474212,138.54,138.5,32.28978769]
[1763474618949,6.71474212,138.53,138.5,32.28978769]
[1763474619325,6.04474212,138.53,138.5,32.28978769]
[1763474619947,6.04474212,138.59,138.55,18.12096]
[1763474620151,4.38,138.64,138.55,18.12096]
[1763474620152,6.04474212,138.58,138.57,18.12096]
[1763474620394,6.04474212,138.58,138.52,18.12096]
[1763474620395,6.71474212,138.58,138.52,18.12096]
[1763474620521,0.67,138.57,138.53,18.12096]
[1763474620724,6.04474212,138.55,138.53,18.12096]
[1763474620925,6.04474212,138.56,138.53,18.12096]
[1763474621433,6.04474212,138.56,138.47,7.42175678]
[1763474621434,6.04474212,138.54,138.47,0.2]
[1763474621639,6.04474212,138.52,138.48,9.78882769]
[1763474621816,6.04474212,138.51,138.5,18.12096]
[1763474622222,6.75474212,138.51,138.5,18.12096]
[1763474623045,6.75474212,138.51,138.49,18.12096]
[1763474623221,4.38,138.56,138.5,18.12096]
[1763474623222,6.04474212,138.53,138.5,18.12096]
[1763474623630,6.75474212,138.53,138.5,18.12096]
[1763474623843,6.04474212,138.51,138.49,18.12096]
[1763474624268,4.38,138.56,138.5,18.12096]
[1763474624573,6.04474212,138.52,138.5,18.12096]
[1763474624757,6.04474212,138.53,138.48,24.16570212]
[1763474625071,6.04474212,138.53,138.5,18.12096]
[1763474625471,6.75474212,138.53,138.5,18.12096]
[1763474625668,6.75474212,138.53,138.48,18.12096]
[1763474625669,0.71,138.52,138.48,18.12096]
[1763474625871,0.71,138.52,138.5,18.12096]
[1763474626073,6.75474212,138.52,138.5,18.12096]
[1763474626373,6.04474212,138.51,138.49,18.12096]
[1763474626578,6.04474212,138.5,138.47,4.58]
[1763474626748,6.04474212,138.5,138.47,0.2]
[1763474626749,6.04474212,138.49,138.47,0.2]
[1763474626948,6.04474212,138.48,138.47,18.32096]
[1763474627177,6.75474212,138.49,138.47,18.32096]
[1763474627747,6.04474212,138.49,138.48,18.12096]
[1763474628381,6.04474212,138.5,138.48,18.12096]
[1763474628696,6.04474212,138.51,138.48,18.12096]
[1763474628843,6.04474212,138.52,138.49,18.12096]
[1763474629344,6.75474212,138.52,138.49,18.12096]
[1763474629547,6.04474212,138.51,138.49,18.12096]
[1763474630486,6.75474212,138.51,138.49,18.12096]
[1763474630659,6.04474212,138.52,138.49,18.12096]
[1763474631679,6.75474212,138.51,138.49,18.12096]
[1763474632086,6.75474212,138.5,138.47,0.2]
[1763474632383,6.04474212,138.48,138.47,0.2]
[1763474632583,6.75474212,138.48,138.47,0.2]
[1763474632885,6.75474212,138.48,138.42,21.27368876]
[1763474633077,6.04474212,138.44,138.42,21.27368876]
[1763474633670,6.75474212,138.43,138.42,21.27368876]
[1763474633879,6.75474212,138.43,138.39,4.36]
[1763474634196,6.04474212,138.42,138.39,4.36]
[1763474634358,6.04474212,138.4,138.36,21.6738248]
[1763474634563,4.36,138.46,138.34,6.46474212]
[1763474634564,6.04474212,138.39,138.34,6.46474212]
[1763474634763,4.36,138.46,138.37,18.12096]
[1763474634764,6.04474212,138.4,138.37,18.12096]
[1763474634962,6.04474212,138.4,138.38,18.12096]
[1763474635162,6.04474212,138.41,138.39,18.12096]
[1763474635998,6.04474212,138.4,138.39,18.12096]
[1763474637565,0.71,138.44,138.39,18.12096]
[1763474637766,6.04474212,138.42,138.39,18.12096]
[1763474638381,0.71,138.42,138.39,18.12096]
[1763474638794,6.04474212,138.43,138.39,18.12096]
[1763474638967,6.04474212,138.43,138.39,18.34096]
[1763474640403,6.04474212,138.44,138.39,24.38570212]
[1763474640779,0.71,138.48,138.43,18.12096]
[1763474640961,102.7,138.49,138.45,18.12096]
[1763474640962,6.04474212,138.47,138.45,18.12096]
[1763474641289,0.71,138.49,138.43,15.83356981]
[1763474641489,6.04474212,138.48,138.43,15.83356981]
[1763474641879,6.04474212,138.48,138.43,16.05356981]
[1763474642078,0.71,138.48,138.43,16.05356981]
[1763474642394,6.04474212,138.46,138.42,18.12096]
[1763474642702,6.04474212,138.44,138.43,18.12096]
[1763474642994,6.04474212,138.44,138.42,18.12096]
[1763474643296,6.75474212,138.44,138.42,18.12096]
[1763474643592,6.04474212,138.45,138.42,18.12096]
[1763474644304,6.75474212,138.45,138.42,18.12096]
[1763474644475,6.04474212,138.43,138.42,18.12096]
[1763474644995,6.75474212,138.43,138.39,4.36]
[1763474645175,6.04474212,138.42,138.41,18.12096]
[1763474645380,6.75474212,138.42,138.36,27.24927672]
[1763474645565,6.04474212,138.4,138.37,14.14882769]
[1763474645895,6.04474212,138.43,138.4,18.12096]
[1763474646100,6.04474212,138.45,138.43,18.12096]
[1763474646392,6.04474212,138.46,138.43,18.12096]
[1763474646791,6.04474212,138.45,138.43,18.12096]
[1763474647578,6.75474212,138.46,138.43,18.12096]
[1763474647781,6.04474212,138.45,138.43,18.12096]
[1763474648601,0.71,138.44,138.43,18.12096]
[1763474648980,6.75474212,138.44,138.43,18.12096]
[1763474649589,6.75474212,138.44,138.39,18.12096]
[1763474649897,22.48096,138.49,138.37,14.14882769]
[1763474649898,6.04474212,138.41,138.37,14.14882769]
[1763474650099,6.04474212,138.41,138.4,18.12096]
[1763474650294,6.04474212,138.44,138.4,18.12096]
[1763474650597,6.04474212,138.42,138.4,18.12096]
[1763474651171,6.75474212,138.41,138.37,32.26978769]
[1763474651402,6.04474212,138.4,138.39,18.12096]
[1763474651585,6.04474212,138.4,138.38,18.12096]
[1763474651586,6.75474212,138.4,138.38,18.12096]
[1763474651786,0.71,138.39,138.38,18.12096]
[1763474652104,6.04474212,138.39,138.38,18.12096]
[1763474652606,6.74474212,138.39,138.38,18.12096]
[1763474653006,6.74474212,138.39,138.34,0.2]
[1763474653302,6.04474212,138.35,138.34,0.2]
[1763474653670,6.74474212,138.35,138.34,0.2]
[1763474654105,6.74474212,138.35,138.29,0.62834037]
[1763474654298,6.04474212,138.32,138.31,18.12096]
[1763474654597,6.04474212,138.32,138.29,0.62834037]
[1763474655473,0.7,138.32,138.31,18.12096]
[1763474655674,6.74474212,138.32,138.29,0.2]
[1763474655895,6.04474212,138.31,138.29,0.2]
[1763474656186,6.04474212,138.31,138.29,18.32096]
[1763474656799,0.7,138.32,138.29,18.32096]
[1763474656995,6.04474212,138.3,138.29,18.32096]
[1763474657977,0.7,138.34,138.3,18.12096]
[1763474658192,6.04474212,138.32,138.3,18.12096]
[1763474659103,6.04474212,138.34,138.31,18.12096]
[1763474659303,6.04474212,138.35,138.32,9.78882769]
[1763474659476,6.04474212,138.36,138.32,32.68978769]
[1763474659876,6.04474212,138.37,138.32,38.73452981]
[1763474660106,6.04474212,138.37,138.33,0.42]
[1763474660278,6.04474212,138.36,138.33,0.42]
[1763474660479,0.7,138.4,138.35,18.12096]
[1763474660684,6.04474212,138.38,138.36,18.12096]
[1763474662401,0.7,138.39,138.36,18.12096]
[1763474662607,6.04474212,138.38,138.36,18.12096]
[1763474663334,6.04474212,138.4,138.36,0.42]
[1763474663627,6.04474212,138.38,138.36,18.12096]
[1763474663827,0.7,138.41,138.35,4.36]
[1763474663990,18.12096,138.44,138.35,4.36]
[1763474663991,6.04474212,138.38,138.35,4.36]
[1763474664397,6.04474212,138.39,138.35,4.36]
[1763474664908,6.74474212,138.39,138.35,4.36]
[1763474665104,6.04474212,138.38,138.35,4.36]
[1763474665304,6.04474212,138.38,138.34,27.90978769]
[1763474665501,6.04474212,138.38,138.34,32.68978769]
[1763474665902,6.04474212,138.38,138.34,28.32978769]
[1763474666126,6.04474212,138.38,138.35,4.36]
[1763474667219,18.12096,138.44,138.34,18.12096]
[1763474667220,6.04474212,138.36,138.34,18.12096]
[1763474667524,6.04474212,138.35,138.31,14.12882769]
[1763474667895,6.74474212,138.35,138.34,18.12096]
[1763474668722,0.7,138.37,138.34,18.12096]
[1763474668926,6.04474212,138.37,138.34,18.12096]
[1763474669108,6.74474212,138.37,138.34,18.12096]
[1763474669311,6.04474212,138.36,138.34,18.12096]
[1763474670114,6.74474212,138.36,138.34,18.12096]
[1763474670435,6.04474212,138.35,138.34,18.12096]
[1763474671225,6.74474212,138.36,138.34,18.12096]
[1763474673326,6.04474212,138.37,138.34,18.12096]
[1763474674124,0.7,138.36,138.34,18.12096]
[1763474674325,6.74474212,138.36,138.34,18.12096]
[1763474675225,6.04474212,138.37,138.34,18.12096]
[1763474675729,6.74474212,138.37,138.34,18.12096]
[1763474676503,6.74474212,138.37,138.35,18.12096]
[1763474676703,4.34,138.41,138.34,18.12096]
[1763474676704,6.74474212,138.36,138.34,18.12096]
[1763474676931,6.04474212,138.35,138.34,18.12096]
[1763474677132,6.74474212,138.35,138.29,6.08166528]
[1763474677333,6.04474212,138.33,138.3,9.78882769]
[1763474677649,6.04474212,138.32,138.29,0.2]
[1763474677946,6.04474212,138.32,138.3,18.12096]
[1763474678242,4.34,138.36,138.29,0.2]
[1763474678243,6.74474212,138.31,138.29,0.2]
[1763474678539,6.04474212,138.3,138.29,18.32096]
[1763474678709,6.74474212,138.3,138.29,18.32096]
[1763474678917,10.8360808,138.3,138.29,18.32096]
[1763474680022,0.7,138.3,138.29,18.32096]
[1763474680218,10.8360808,138.3,138.29,18.32096]
[1763474681324,10.1360808,138.3,138.29,18.32096]
[1763474681511,0.7,138.34,138.3,18.12096]
[1763474681707,10.1360808,138.33,138.3,18.12096]
[1763474682142,10.1360808,138.35,138.32,18.12096]
[1763474682343,4.99,138.38,138.31,14.8960808]
[1763474682642,10.1360808,138.35,138.31,22.88096]
[1763474683015,0.65,138.37,138.31,22.88096]
[1763474683242,10.1360808,138.37,138.32,38.46586849]
[1763474683424,10.1360808,138.36,138.33,4.34]
[1763474684634,10.1360808,138.37,138.35,18.12096]
[1763474685537,10.1360808,138.36,138.35,18.12096]
[1763474686246,10.7860808,138.36,138.35,18.12096]
[1763474686438,10.7860808,138.36,138.33,22.46096]
[1763474686739,10.1360808,138.35,138.33,22.46096]
[1763474687337,10.1360808,138.35,138.33,18.12096]
[1763474687541,10.1360808,138.35,138.31,4.76]
[1763474687847,10.1360808,138.35,138.33,18.12096]
[1763474689431,0.65,138.39,138.35,18.12096]
[1763474689643,10.1360808,138.37,138.35,18.12096]
[1763474690148,10.7860808,138.37,138.35,18.12096]
[1763474690724,10.1360808,138.37,138.35,18.12096]
[1763474691139,0.65,138.38,138.35,18.12096]
[1763474691140,10.1360808,138.38,138.35,18.12096]
[1763474691346,10.1360808,138.38,138.34,18.54096]
[1763474691555,10.7860808,138.38,138.34,18.54096]
[1763474693052,0.65,138.38,138.37,18.12096]
[1763474694137,14.4760808,138.39,138.36,18.12096]
[1763474694326,15.1260808,138.39,138.36,18.12096]
[1763474694530,14.4760808,138.39,138.36,18.12096]
[1763474694754,10.1360808,138.39,138.36,18.12096]
[1763474695476,4.34,138.41,138.36,18.12096]
[1763474695477,10.7860808,138.38,138.36,18.12096]
[1763474695765,10.1360808,138.39,138.36,18.12096]
[1763474695943,10.1360808,138.38,138.36,18.12096]
[1763474696455,10.7860808,138.38,138.36,18.12096]
[1763474698544,10.1360808,138.38,138.36,18.12096]
[1763474698739,0.65,138.37,138.36,18.12096]
[1763474698946,10.7860808,138.37,138.36,18.12096]
[1763474699146,0.65,138.37,138.36,18.12096]
[1763474699361,10.7860808,138.37,138.36,18.12096]
[1763474699565,0.65,138.37,138.35,18.12096]
[1763474700494,0.65,138.37,138.36,18.12096]
[1763474700984,0.65,138.37,138.33,5.88166528]
[1763474700985,10.7860808,138.37,138.33,18.12096]
[1763474701183,10.1360808,138.35,138.33,18.12096]
[1763474701348,0.65,138.34,138.31,5.88166528]
[1763474702146,0.65,138.34,138.33,18.12096]
[1763474702348,4.99,138.36,138.34,18.12096]
[1763474702582,15.1260808,138.36,138.34,18.12096]
[1763474703357,14.4760808,138.36,138.34,18.12096]
[1763474703691,14.4760808,138.36,138.32,5.88166528]
[1763474703692,10.7860808,138.35,138.32,5.88166528]
[1763474703863,10.1360808,138.33,138.3,5.88166528]
[1763474704171,4.34,138.36,138.29,0.2]
[1763474704172,10.1360808,138.31,138.29,6.08166528]
[1763474704347,4.34,138.32,138.29,0.2]
[1763474704348,10.1360808,138.3,138.29,0.2]
[1763474704549,4.34,138.32,138.29,6.50166528]
[1763474704782,10.1360808,138.33,138.29,6.50166528]
[1763474704783,10.1360808,138.33,138.29,6.08166528]
[1763474704968,4.34,138.34,138.3,5.88166528]
[1763474704969,0.65,138.32,138.3,5.88166528]
[1763474705284,0.65,138.32,138.29,0.2]
[1763474705285,14.4760808,138.31,138.29,0.2]
[1763474705580,10.1360808,138.3,138.29,0.2]
[1763474705774,10.7860808,138.3,138.29,0.2]
[1763474706367,10.1360808,138.3,138.29,0.2]
[1763474706566,10.1360808,138.32,138.29,0.2]
[1763474706776,10.1360808,138.32,138.29,6.08166528]
[1763474706963,4.34,138.33,138.29,6.08166528]
[1763474707277,10.1360808,138.3,138.29,0.2]
[1763474707478,14.4760808,138.3,138.29,0.2]
[1763474707798,15.1260808,138.3,138.29,0.2]
[1763474708202,15.1060808,138.31,138.29,0.2]
[1763474708377,10.7860808,138.3,138.29,0.2]
[1763474709259,10.1360808,138.32,138.3,18.12096]
[1763474710182,14.4760808,138.33,138.3,18.12096]
[1763474710386,4.34,138.33,138.31,18.12096]
[1763474710564,10.1360808,138.34,138.31,18.54096]
[1763474710767,10.1360808,138.34,138.31,18.12096]
[1763474711174,14.4560808,138.35,138.31,18.12096]
[1763474711385,15.1060808,138.35,138.31,18.12096]
[1763474711563,4.32,138.35,138.32,0.42]
[1763474711764,4.32,138.35,138.3,34.55870608]
[1763474712102,14.4560808,138.35,138.31,4.74]
[1763474712401,102.7,138.42,138.31,4.74]
[1763474712402,14.4560808,138.38,138.36,18.12096]
[1763474712595,15.1560808,138.38,138.36,18.12096]
[1763474712974,4.32,138.38,138.36,18.12096]
[1763474713368,15.1560808,138.4,138.37,18.12096]
[1763474713567,5.02,138.4,138.37,18.12096]
[1763474713780,15.1560808,138.4,138.37,18.12096]
[1763474713993,10.8360808,138.39,138.37,18.12096]
[1763474714379,10.1360808,138.38,138.36,18.12096]
[1763474714910,10.8360808,138.38,138.36,18.12096]
[1763474715115,10.1360808,138.38,138.36,18.12096]
[1763474715307,14.4560808,138.4,138.37,18.12096]
[1763474715513,15.1560808,138.4,138.37,18.12096]
[1763474715811,10.8360808,138.39,138.37,18.12096]
[1763474716177,10.1360808,138.39,138.37,18.12096]
[1763474717114,10.8360808,138.39,138.37,18.12096]
[1763474718790,10.8360808,138.38,138.36,18.12096]
[1763474718990,10.1360808,138.38,138.36,18.12096]
[1763474719190,10.8360808,138.37,138.36,18.12096]
[1763474719504,10.8360808,138.37,138.35,18.12096]
[1763474719694,10.1360808,138.37,138.35,18.12096]
[1763474719894,10.8360808,138.37,138.35,18.12096]
[1763474720092,0.7,138.37,138.36,18.12096]
[1763474720285,14.4560808,138.38,138.36,18.12096]
[1763474720489,15.1660808,138.38,138.36,18.12096]
[1763474720908,8.66464064,138.38,138.36,18.12096]
[1763474721483,4.32,138.38,138.36,18.54096]
[1763474721793,4.32,138.4,138.37,18.12096]
[1763474722109,7.95464064,138.4,138.37,18.12096]
[1763474722317,8.66464064,138.4,138.37,18.12096]
[1763474722530,8.66464064,138.4,138.36,18.12096]
[1763474722531,3.63464064,138.38,138.36,18.12096]
[1763474722818,4.34464064,138.37,138.36,18.12096]
[1763474723199,8.66464064,138.37,138.35,18.12096]
[1763474723409,4.34464064,138.36,138.32,9.78882769]
[1763474723881,4.34464064,138.36,138.32,10.20882769]
[1763474723882,3.63464064,138.36,138.32,10.20882769]
[1763474724084,4.34464064,138.36,138.35,18.12096]
[1763474724794,4.34464064,138.36,138.29,20.61049297]
[1763474725107,4.32,138.37,138.32,18.12096]
[1763474725108,3.63464064,138.34,138.32,18.12096]
[1763474725309,3.63464064,138.34,138.29,24.24513361]
[1763474725610,4.34464064,138.34,138.32,18.12096]
[1763474726117,3.63464064,138.33,138.32,18.12096]
[1763474726418,4.34464064,138.33,138.32,18.12096]
[1763474726715,4.34464064,138.33,138.29,14.30882769]
[1763474726918,4.34464064,138.33,138.32,18.12096]
[1763474726919,10.13294916,138.33,138.32,18.12096]
[1763474727482,10.84294916,138.33,138.32,18.12096]
[1763474728483,10.84294916,138.33,138.31,18.12096]
[1763474728718,10.13294916,138.32,138.31,18.12096]
[1763474729296,10.84294916,138.32,138.29,0.2]
[1763474729494,10.13294916,138.3,138.29,0.2]
[1763474729891,10.84294916,138.3,138.29,0.2]
[1763474730215,10.13294916,138.3,138.29,0.2]
[1763474730415,4.32,138.34,138.29,0.2]
[1763474730416,10.13294916,138.31,138.3,18.12096]
[1763474730720,10.84294916,138.33,138.3,18.12096]
[1763474731416,4.32,138.34,138.3,18.12096]
[1763474731592,10.84294916,138.33,138.3,18.12096]
[1763474731792,10.13294916,138.31,138.3,18.12096]
[1763474732317,10.13294916,138.33,138.3,18.54096]
[1763474732627,10.84294916,138.33,138.3,18.12096]
[1763474732792,10.13294916,138.31,138.3,18.12096]
[1763474733223,0.71,138.32,138.3,18.12096]
[1763474733435,5.03,138.34,138.3,18.54096]
[1763474733719,10.84294916,138.33,138.3,18.12096]
[1763474733924,10.13294916,138.31,138.3,18.12096]